[Event "*** Titled Tuesday Blitz"]
[Site "Chess.com"]
[Date "2020.04.28"]
[Round "4"]
[White "DishonorOnYourCow"]
[Black "TregubovP"]
[Result "0-1"]
[WhiteElo "2320"]
[BlackElo "2513"]
[TimeControl "180+1"]
[EndTime "10:41:19 PDT"]
[Termination "TregubovP won on time"]

1. d4 {[%clk 0:03:00.9]} 1... Nf6 {[%clk 0:02:58.3]} 2. c4 {[%clk 0:03:00.3]}
2... e6 {[%clk 0:02:58.4]} 3. Nf3 {[%clk 0:02:59.3]} 3... Bb4+ {[%clk
0:02:58.7]} 4. Nbd2 {[%clk 0:02:56.9]} 4... O-O {[%clk 0:02:57.6]} 5. a3 {[%clk
0:02:56.6]} 5... Be7 {[%clk 0:02:58.2]} 6. e4 {[%clk 0:02:55.5]} 6... d6 {[%clk
0:02:58.8]} 7. Bd3 {[%clk 0:02:46.4]} 7... e5 {[%clk 0:02:58]} 8. O-O {[%clk
0:02:41.1]} 8... exd4 {[%clk 0:02:56.1]} 9. Nxd4 {[%clk 0:02:40.2]} 9... Nbd7
{[%clk 0:02:52.1]} 10. b4 {[%clk 0:02:38.1]} 10... a5 {[%clk 0:02:45.2]} 11. Bb2
{[%clk 0:02:35.6]} 11... axb4 {[%clk 0:02:43.3]} 12. axb4 {[%clk 0:02:36.5]}
12... Rxa1 {[%clk 0:02:43.6]} 13. Qxa1 {[%clk 0:02:36.9]} 13... c5 {[%clk
0:02:43.8]} 14. Nc2 {[%clk 0:02:24.2]} 14... Re8 {[%clk 0:02:36]} 15. b5 {[%clk
0:02:15.3]} 15... Bf8 {[%clk 0:02:33]} 16. Ne3 {[%clk 0:02:09.1]} 16... Ne5
{[%clk 0:02:32.8]} 17. Be2 {[%clk 0:02:08.4]} 17... Neg4 {[%clk 0:02:23.3]} 18.
Nxg4 {[%clk 0:00:41.6]} 18... Nxg4 {[%clk 0:02:21]} 19. h3 {[%clk 0:00:38.6]}
19... Ne5 {[%clk 0:02:08.9]} 20. f4 {[%clk 0:00:35.7]} 20... Nd7 {[%clk
0:02:03.9]} 21. Bf3 {[%clk 0:00:33.4]} 21... Qh4 {[%clk 0:01:44.8]} 22. Bg4
{[%clk 0:00:26.2]} 22... g6 {[%clk 0:01:24.9]} 23. Nf3 {[%clk 0:00:25.5]} 23...
Qh6 {[%clk 0:01:24.1]} 24. f5 {[%clk 0:00:22.9]} 24... Rxe4 {[%clk 0:01:07.6]}
25. fxg6 {[%clk 0:00:22.4]} 25... hxg6 {[%clk 0:01:07.3]} 26. Re1 {[%clk
0:00:15.7]} 26... Qf4 {[%clk 0:00:53.9]} 27. Rxe4 {[%clk 0:00:14.8]} 27... Qxe4
{[%clk 0:00:53.1]} 28. Qa8 {[%clk 0:00:14.7]} 28... Qb1+ {[%clk 0:00:50.1]} 29.
Kh2 {[%clk 0:00:13.6]} 29... Qxb2 {[%clk 0:00:49.3]} 30. Qxc8 {[%clk 0:00:13.5]}
30... Nf6 {[%clk 0:00:46.6]} 31. Qxb7 {[%clk 0:00:13.5]} 31... d5 {[%clk
0:00:28]} 32. cxd5 {[%clk 0:00:12.2]} 32... Bd6+ {[%clk 0:00:27.1]} 33. Kg1
{[%clk 0:00:09.2]} 33... Qc1+ {[%clk 0:00:24.3]} 34. Kf2 {[%clk 0:00:09.1]}
34... Ne4+ {[%clk 0:00:23]} 35. Ke2 {[%clk 0:00:09]} 35... Nc3+ {[%clk
0:00:16.1]} 36. Kd3 {[%clk 0:00:07.7]} 36... Na4 {[%clk 0:00:08]} 37. Qa8+
{[%clk 0:00:06.2]} 37... Kg7 {[%clk 0:00:08.3]} 38. Qxa4 {[%clk 0:00:06.9]}
38... Qf1+ {[%clk 0:00:06.3]} 39. Ke3 {[%clk 0:00:06.3]} 39... Qxg2 {[%clk
0:00:06.2]} 40. Qa1+ {[%clk 0:00:05.3]} 40... Kg8 {[%clk 0:00:05.7]} 41. b6
{[%clk 0:00:05.3]} 41... f5 {[%clk 0:00:05.2]} 42. b7 {[%clk 0:00:04.7]} 42...
fxg4 {[%clk 0:00:04.9]} 43. hxg4 {[%clk 0:00:04]} 43... Qg3 {[%clk 0:00:04.4]}
44. Qa8+ {[%clk 0:00:03.4]} 44... Kg7 {[%clk 0:00:04.1]} 45. Qc8 {[%clk
0:00:03.6]} 45... Qf4+ {[%clk 0:00:04.5]} 46. Ke2 {[%clk 0:00:03]} 46... Qe4+
{[%clk 0:00:04.4]} 47. Kf2 {[%clk 0:00:03.3]} 47... Qe7 {[%clk 0:00:04.8]} 48.
Nd2 {[%clk 0:00:01.4]} 48... c4 {[%clk 0:00:04.9]} 49. Nxc4 {[%clk 0:00:01.7]}
49... Bc5+ {[%clk 0:00:04.9]} 50. Kf3 {[%clk 0:00:02.5]} 50... Ba7 {[%clk
0:00:05.4]} 51. Qa8 {[%clk 0:00:01.7]} 51... Qf6+ {[%clk 0:00:05.2]} 52. Kg2
{[%clk 0:00:01.4]} 52... Qf2+ {[%clk 0:00:05.1]} 0-1

[Event "*** Titled Tuesday Blitz"]
[Site "Chess.com"]
[Date "2020.04.28"]
[Round "4"]
[White "Training_Day"]
[Black "JessPinkman"]
[Result "0-1"]
[WhiteElo "2296"]
[BlackElo "2478"]
[TimeControl "180+1"]
[EndTime "10:41:20 PDT"]
[Termination "JessPinkman won on time"]

1. e4 {[%clk 0:03:00.9]} 1... c5 {[%clk 0:03:00.2]} 2. c3 {[%clk 0:03:00.5]}
2... Nf6 {[%clk 0:02:59.5]} 3. e5 {[%clk 0:03:00.7]} 3... Nd5 {[%clk 0:03:00.2]}
4. Nf3 {[%clk 0:03:01.2]} 4... d6 {[%clk 0:02:59.6]} 5. d4 {[%clk 0:03:00.6]}
5... cxd4 {[%clk 0:03:00.5]} 6. Qxd4 {[%clk 0:03:01]} 6... e6 {[%clk 0:02:59.1]}
7. Nbd2 {[%clk 0:03:01.3]} 7... Nc6 {[%clk 0:02:59.1]} 8. Bb5 {[%clk 0:03:01.7]}
8... Bd7 {[%clk 0:02:58.6]} 9. Bxc6 {[%clk 0:03:01.8]} 9... Bxc6 {[%clk
0:02:59.4]} 10. Nc4 {[%clk 0:03:02.3]} 10... dxe5 {[%clk 0:02:45.7]} 11. Ncxe5
{[%clk 0:03:01.9]} 11... Nf6 {[%clk 0:02:25.9]} 12. Qxd8+ {[%clk 0:02:56.4]}
12... Rxd8 {[%clk 0:02:23.8]} 13. Nxc6 {[%clk 0:02:55.8]} 13... bxc6 {[%clk
0:02:23.5]} 14. Be3 {[%clk 0:02:44.7]} 14... a6 {[%clk 0:02:21.3]} 15. c4 {[%clk
0:02:32.4]} 15... Bb4+ {[%clk 0:02:19.9]} 16. Ke2 {[%clk 0:02:30.3]} 16... Ke7
{[%clk 0:02:17.2]} 17. Rhd1 {[%clk 0:02:28.4]} 17... Nd7 {[%clk 0:01:53]} 18. a3
{[%clk 0:02:26.3]} 18... Bd6 {[%clk 0:01:42.9]} 19. b4 {[%clk 0:02:14.4]} 19...
Bc7 {[%clk 0:01:21.3]} 20. Nd4 {[%clk 0:02:07.7]} 20... Nb8 {[%clk 0:01:15.2]}
21. Nb3 {[%clk 0:02:03.8]} 21... f6 {[%clk 0:01:05.5]} 22. a4 {[%clk 0:01:41.3]}
22... g5 {[%clk 0:01:03.2]} 23. a5 {[%clk 0:01:33]} 23... h5 {[%clk 0:01:00.1]}
24. Bb6 {[%clk 0:01:29.3]} 24... Rxd1 {[%clk 0:00:51.5]} 25. Rxd1 {[%clk
0:01:27.9]} 25... Bxh2 {[%clk 0:00:36.8]} 26. g3 {[%clk 0:00:41]} 26... h4
{[%clk 0:00:36.4]} 27. Rh1 {[%clk 0:00:40]} 27... hxg3 {[%clk 0:00:33]} 28. fxg3
{[%clk 0:00:40.6]} 28... Rh3 {[%clk 0:00:28.4]} 29. Bc7 {[%clk 0:00:29.6]} 29...
Nd7 {[%clk 0:00:27.8]} 30. Nd4 {[%clk 0:00:25.3]} 30... e5 {[%clk 0:00:19.9]}
31. Nf3 {[%clk 0:00:23.6]} 31... g4 {[%clk 0:00:17.6]} 32. Nxh2 {[%clk
0:00:20.9]} 32... Rxg3 {[%clk 0:00:16.3]} 33. Kf2 {[%clk 0:00:15]} 33... Rb3
{[%clk 0:00:12.1]} 34. Nxg4 {[%clk 0:00:13]} 34... Rxb4 {[%clk 0:00:12.4]} 35.
Rh7+ {[%clk 0:00:13.1]} 35... Ke6 {[%clk 0:00:12.2]} 36. Ne3 {[%clk 0:00:11.4]}
36... Nc5 {[%clk 0:00:07.4]} 37. Bb6 {[%clk 0:00:04.7]} 37... Ne4+ {[%clk
0:00:05.9]} 38. Kf3 {[%clk 0:00:04.9]} 38... Nd2+ {[%clk 0:00:06]} 39. Ke2
{[%clk 0:00:05]} 39... Nxc4 {[%clk 0:00:06.1]} 40. Nxc4 {[%clk 0:00:04.6]} 40...
Rxc4 {[%clk 0:00:07]} 41. Ra7 {[%clk 0:00:04.6]} 41... f5 {[%clk 0:00:06.9]} 42.
Rxa6 {[%clk 0:00:04.9]} 42... f4 {[%clk 0:00:07.2]} 43. Ra8 {[%clk 0:00:04.2]}
43... Rb4 {[%clk 0:00:06]} 44. Re8+ {[%clk 0:00:02]} 44... Kf5 {[%clk
0:00:04.6]} 45. Rc8 {[%clk 0:00:02]} 45... Ra4 {[%clk 0:00:03.6]} 46. Rxc6
{[%clk 0:00:02.3]} 46... e4 {[%clk 0:00:04]} 47. Rc5+ {[%clk 0:00:02.6]} 47...
Kg4 {[%clk 0:00:03.8]} 48. Bc7 {[%clk 0:00:02.5]} 48... Ra2+ {[%clk 0:00:03.2]}
49. Kf1 {[%clk 0:00:02.2]} 49... Kf3 {[%clk 0:00:03.1]} 0-1

[Event "*** Titled Tuesday Blitz"]
[Site "Chess.com"]
[Date "2020.04.28"]
[Round "4"]
[White "RodinMihail"]
[Black "Jospem"]
[Result "1/2-1/2"]
[WhiteElo "2540"]
[BlackElo "2831"]
[TimeControl "180+1"]
[EndTime "10:41:21 PDT"]
[Termination "Game drawn by repetition"]

1. e4 {[%clk 0:03:00.9]} 1... c5 {[%clk 0:02:58.3]} 2. Nf3 {[%clk 0:03:00.8]}
2... d6 {[%clk 0:02:58.9]} 3. d4 {[%clk 0:03:01.4]} 3... cxd4 {[%clk 0:02:59.8]}
4. Nxd4 {[%clk 0:03:02.1]} 4... a6 {[%clk 0:03:00.7]} 5. Nc3 {[%clk 0:03:02.4]}
5... e6 {[%clk 0:03:01.1]} 6. Qf3 {[%clk 0:03:00.7]} 6... Qc7 {[%clk 0:02:53.6]}
7. g4 {[%clk 0:02:55.2]} 7... b5 {[%clk 0:02:52.9]} 8. g5 {[%clk 0:02:52.6]}
8... Bb7 {[%clk 0:02:53.3]} 9. h4 {[%clk 0:02:49.2]} 9... Nd7 {[%clk 0:02:53.1]}
10. h5 {[%clk 0:02:44.2]} 10... Ne5 {[%clk 0:02:49.5]} 11. Qg2 {[%clk
0:02:44.1]} 11... b4 {[%clk 0:02:49.3]} 12. Nce2 {[%clk 0:02:43]} 12... d5
{[%clk 0:02:36.1]} 13. f4 {[%clk 0:02:34.9]} 13... Nc6 {[%clk 0:02:36.3]} 14. e5
{[%clk 0:02:23.6]} 14... Bc5 {[%clk 0:02:35.5]} 15. Be3 {[%clk 0:02:22.9]} 15...
Nxd4 {[%clk 0:02:33.3]} 16. Nxd4 {[%clk 0:02:22.6]} 16... Ne7 {[%clk 0:02:33.2]}
17. g6 {[%clk 0:02:19.4]} 17... hxg6 {[%clk 0:02:22.8]} 18. hxg6 {[%clk
0:02:19.2]} 18... Rxh1 {[%clk 0:02:23.7]} 19. gxf7+ {[%clk 0:02:17.6]} 19...
Kxf7 {[%clk 0:02:24.6]} 20. Qxh1 {[%clk 0:02:17.9]} 20... Bxd4 {[%clk
0:02:24.9]} 21. Bxd4 {[%clk 0:02:17.4]} 21... Qxc2 {[%clk 0:02:24.4]} 22. Qh5+
{[%clk 0:01:52.6]} 22... Kg8 {[%clk 0:02:14.7]} 23. Rd1 {[%clk 0:01:29.4]} 23...
Qe4+ {[%clk 0:01:51.1]} 24. Be2 {[%clk 0:01:29.3]} 24... Nf5 {[%clk 0:01:47]}
25. Qg6 {[%clk 0:00:56]} 25... Nxd4 {[%clk 0:00:33.3]} 26. Qxe4 {[%clk
0:00:55.5]} 26... dxe4 {[%clk 0:00:34.2]} 27. Rxd4 {[%clk 0:00:56.1]} 27... Bd5
{[%clk 0:00:29.7]} 28. Rxb4 {[%clk 0:00:45.8]} 28... a5 {[%clk 0:00:29.5]} 29.
Rd4 {[%clk 0:00:33]} 29... Bxa2 {[%clk 0:00:25]} 30. Rxe4 {[%clk 0:00:31.3]}
30... Bd5 {[%clk 0:00:17]} 31. Rd4 {[%clk 0:00:31]} 31... Rb8 {[%clk 0:00:15.3]}
32. Ra4 {[%clk 0:00:25.9]} 32... Rxb2 {[%clk 0:00:12.3]} 33. Rxa5 {[%clk
0:00:26.2]} 33... Rb4 {[%clk 0:00:11.1]} 34. Kd2 {[%clk 0:00:23.8]} 34... Rxf4
{[%clk 0:00:11]} 35. Bd3 {[%clk 0:00:24.5]} 35... g5 {[%clk 0:00:09.9]} 36. Ra7
{[%clk 0:00:23.6]} 36... Rf7 {[%clk 0:00:09.3]} 37. Rxf7 {[%clk 0:00:21.1]}
37... Kxf7 {[%clk 0:00:09.4]} 38. Ke3 {[%clk 0:00:21.7]} 38... Kg7 {[%clk
0:00:08.4]} 39. Kf2 {[%clk 0:00:21.8]} 39... Kh6 {[%clk 0:00:07.1]} 40. Kg3
{[%clk 0:00:22.4]} 40... Kh5 {[%clk 0:00:07]} 41. Be2+ {[%clk 0:00:22.6]} 41...
Kh6 {[%clk 0:00:06.4]} 42. Bd3 {[%clk 0:00:23.3]} 42... Ba2 {[%clk 0:00:06.6]}
43. Kg4 {[%clk 0:00:22.3]} 43... Bb3 {[%clk 0:00:07.1]} 44. Kg3 {[%clk
0:00:22.5]} 44... Kh5 {[%clk 0:00:07.6]} 45. Be2+ {[%clk 0:00:22.2]} 45... Kg6
{[%clk 0:00:07.5]} 46. Bd3+ {[%clk 0:00:23.1]} 46... Kh6 {[%clk 0:00:07.7]} 47.
Kg4 {[%clk 0:00:23.5]} 47... Bd1+ {[%clk 0:00:07.9]} 48. Kg3 {[%clk 0:00:24]}
48... Kh5 {[%clk 0:00:08.1]} 49. Bb5 {[%clk 0:00:23.8]} 49... g4 {[%clk
0:00:06.7]} 50. Bc4 {[%clk 0:00:23]} 50... Kg5 {[%clk 0:00:04.4]} 51. Bxe6
{[%clk 0:00:23.1]} 51... Bf3 {[%clk 0:00:05.3]} 52. Bxg4 {[%clk 0:00:20.5]}
52... Bxg4 {[%clk 0:00:06.2]} 53. e6 {[%clk 0:00:21.4]} 53... Bh5 {[%clk
0:00:06.4]} 54. e7 {[%clk 0:00:21.4]} 54... Be8 {[%clk 0:00:07.3]} 55. Kf3
{[%clk 0:00:21.8]} 55... Kf5 {[%clk 0:00:08.2]} 56. Ke3 {[%clk 0:00:21.9]} 56...
Ke5 {[%clk 0:00:09.1]} 57. Kf3 {[%clk 0:00:22.1]} 57... Kd5 {[%clk 0:00:10]} 58.
Kg4 {[%clk 0:00:23]} 58... Ke6 {[%clk 0:00:10.7]} 59. Kg5 {[%clk 0:00:23.9]}
59... Kf7 {[%clk 0:00:11]} 60. Kh6 {[%clk 0:00:24.1]} 60... Bd7 {[%clk
0:00:11.9]} 61. Kg5 {[%clk 0:00:25]} 61... Be8 {[%clk 0:00:12.8]} 62. Kf4 {[%clk
0:00:25.7]} 62... Bd7 {[%clk 0:00:13.7]} 63. Kg5 {[%clk 0:00:26.6]} 63... Be8
{[%clk 0:00:13.5]} 1/2-1/2

[Event "*** Titled Tuesday Blitz"]
[Site "Chess.com"]
[Date "2020.04.28"]
[Round "4"]
[White "Frogo47"]
[Black "tacticthunder"]
[Result "1-0"]
[WhiteElo "2493"]
[BlackElo "2658"]
[TimeControl "180+1"]
[EndTime "10:41:21 PDT"]
[Termination "Frogo47 won by checkmate"]

1. e4 {[%clk 0:03:00.9]} 1... c5 {[%clk 0:02:50.7]} 2. Nf3 {[%clk 0:02:57.2]}
2... Nc6 {[%clk 0:02:51.1]} 3. Bb5 {[%clk 0:02:56.7]} 3... g6 {[%clk 0:02:50.6]}
4. O-O {[%clk 0:02:56.3]} 4... Bg7 {[%clk 0:02:50.4]} 5. Re1 {[%clk 0:02:56.6]}
5... Nf6 {[%clk 0:02:49.8]} 6. e5 {[%clk 0:02:43.8]} 6... Nd5 {[%clk 0:02:49.4]}
7. Nc3 {[%clk 0:02:44.2]} 7... Nc7 {[%clk 0:02:48.7]} 8. Bxc6 {[%clk 0:02:44.3]}
8... dxc6 {[%clk 0:02:49.6]} 9. Ne4 {[%clk 0:02:44.4]} 9... Ne6 {[%clk
0:02:50.1]} 10. d3 {[%clk 0:02:33.5]} 10... O-O {[%clk 0:02:44]} 11. Be3 {[%clk
0:02:31.3]} 11... b6 {[%clk 0:02:43.4]} 12. Qd2 {[%clk 0:02:28.7]} 12... Nd4
{[%clk 0:02:32.9]} 13. Nxd4 {[%clk 0:02:25.8]} 13... cxd4 {[%clk 0:02:33.8]} 14.
Bh6 {[%clk 0:02:25.4]} 14... c5 {[%clk 0:02:22.8]} 15. Qf4 {[%clk 0:02:20.8]}
15... Qd5 {[%clk 0:02:19.1]} 16. Ng3 {[%clk 0:02:09]} 16... Qe6 {[%clk
0:02:04.8]} 17. a4 {[%clk 0:01:57.1]} 17... a5 {[%clk 0:02:03]} 18. b3 {[%clk
0:01:48.7]} 18... Qg4 {[%clk 0:01:47.7]} 19. Qd2 {[%clk 0:01:48.1]} 19... Bb7
{[%clk 0:01:39.1]} 20. f3 {[%clk 0:01:47.4]} 20... Qe6 {[%clk 0:01:33.7]} 21.
Re2 {[%clk 0:01:40.2]} 21... Rad8 {[%clk 0:01:22.9]} 22. Qg5 {[%clk 0:01:22.6]}
22... Rfe8 {[%clk 0:01:04.4]} 23. Bxg7 {[%clk 0:01:09.1]} 23... Kxg7 {[%clk
0:01:05.3]} 24. Nh5+ {[%clk 0:01:04.4]} 24... Kh8 {[%clk 0:01:05.3]} 25. Nf4
{[%clk 0:01:00.3]} 25... Qf5 {[%clk 0:01:04.9]} 26. Qxf5 {[%clk 0:00:41.7]}
26... gxf5 {[%clk 0:01:05.8]} 27. Kf2 {[%clk 0:00:37.1]} 27... Kg7 {[%clk
0:01:00.6]} 28. h3 {[%clk 0:00:29.9]} 28... Bc8 {[%clk 0:00:49.2]} 29. g4 {[%clk
0:00:29.3]} 29... f6 {[%clk 0:00:36.6]} 30. Rae1 {[%clk 0:00:17.7]} 30... fxg4
{[%clk 0:00:36.3]} 31. hxg4 {[%clk 0:00:17.6]} 31... Kf7 {[%clk 0:00:35.4]} 32.
exf6 {[%clk 0:00:17.4]} 32... Kxf6 {[%clk 0:00:35]} 33. Re5 {[%clk 0:00:17.2]}
33... Kf7 {[%clk 0:00:29.7]} 34. Nd5 {[%clk 0:00:16.6]} 34... e6 {[%clk
0:00:25.6]} 35. Nxb6 {[%clk 0:00:16.5]} 35... Bb7 {[%clk 0:00:25.1]} 36. Nc4
{[%clk 0:00:16.4]} 36... Bd5 {[%clk 0:00:22.2]} 37. Nxa5 {[%clk 0:00:16.3]}
37... Ke7 {[%clk 0:00:20.2]} 38. Nc4 {[%clk 0:00:15.8]} 38... Rf8 {[%clk
0:00:20.5]} 39. Nd2 {[%clk 0:00:15]} 39... Rf4 {[%clk 0:00:19.5]} 40. Kg3 {[%clk
0:00:14.3]} 40... Rf7 {[%clk 0:00:18]} 41. Rf1 {[%clk 0:00:12.5]} 41... Kd6
{[%clk 0:00:17.8]} 42. Re2 {[%clk 0:00:12.2]} 42... Rg8 {[%clk 0:00:18.1]} 43.
Rh2 {[%clk 0:00:12.6]} 43... Rfg7 {[%clk 0:00:16.9]} 44. Rff2 {[%clk 0:00:12.2]}
44... Rh8 {[%clk 0:00:17]} 45. Rh5 {[%clk 0:00:10.2]} 45... e5 {[%clk
0:00:15.4]} 46. Ne4+ {[%clk 0:00:09.9]} 46... Kc6 {[%clk 0:00:14.8]} 47. Rfh2
{[%clk 0:00:09.2]} 47... Rf7 {[%clk 0:00:13.3]} 48. Rxe5 {[%clk 0:00:08.7]}
48... Rhf8 {[%clk 0:00:13.6]} 49. Rh6+ {[%clk 0:00:08.7]} 49... Kb7 {[%clk
0:00:12.3]} 50. Rxd5 {[%clk 0:00:09]} 50... Rxf3+ {[%clk 0:00:12.6]} 51. Kh4
{[%clk 0:00:09.6]} 51... Re3 {[%clk 0:00:11.9]} 52. Rf5 {[%clk 0:00:08.6]} 52...
Rg8 {[%clk 0:00:10.5]} 53. Rxh7+ {[%clk 0:00:08.3]} 53... Kc6 {[%clk 0:00:09.9]}
54. Rf6+ {[%clk 0:00:08.4]} 54... Kd5 {[%clk 0:00:09.3]} 55. Rd6+ {[%clk
0:00:08.2]} 55... Ke5 {[%clk 0:00:08.1]} 56. Re7+ {[%clk 0:00:08.5]} 56... Kf4
{[%clk 0:00:07.9]} 57. Rf6# {[%clk 0:00:09]} 1-0

[Event "*** Titled Tuesday Blitz"]
[Site "Chess.com"]
[Date "2020.04.28"]
[Round "4"]
[White "Bacyanide"]
[Black "MisiekZielony"]
[Result "1/2-1/2"]
[WhiteElo "2397"]
[BlackElo "2121"]
[TimeControl "180+1"]
[EndTime "10:41:21 PDT"]
[Termination "Game drawn by repetition"]

1. d4 {[%clk 0:03:00.9]} 1... d5 {[%clk 0:02:59.2]} 2. Nf3 {[%clk 0:03:00.6]}
2... Nf6 {[%clk 0:02:59.2]} 3. Bf4 {[%clk 0:03:01.1]} 3... c5 {[%clk 0:02:59.1]}
4. e3 {[%clk 0:03:01]} 4... cxd4 {[%clk 0:02:59.1]} 5. exd4 {[%clk 0:03:00.5]}
5... Nc6 {[%clk 0:02:59.3]} 6. Nbd2 {[%clk 0:03:01]} 6... Bg4 {[%clk 0:02:59.1]}
7. c3 {[%clk 0:02:58.3]} 7... e6 {[%clk 0:02:58.9]} 8. Bd3 {[%clk 0:02:57.3]}
8... Bd6 {[%clk 0:02:58.4]} 9. Bg3 {[%clk 0:02:56.6]} 9... O-O {[%clk
0:02:56.9]} 10. O-O {[%clk 0:02:56.1]} 10... Rb8 {[%clk 0:02:49.2]} 11. Qe2
{[%clk 0:02:55.6]} 11... a6 {[%clk 0:02:41.9]} 12. a4 {[%clk 0:02:48.3]} 12...
Rc8 {[%clk 0:02:33.3]} 13. Qe3 {[%clk 0:02:47.6]} 13... Bxf3 {[%clk 0:02:32.1]}
14. Nxf3 {[%clk 0:02:47]} 14... Re8 {[%clk 0:02:05.8]} 15. Ne5 {[%clk 0:02:45]}
15... Be7 {[%clk 0:01:54.8]} 16. f4 {[%clk 0:02:38.7]} 16... g6 {[%clk
0:01:53.3]} 17. Rf3 {[%clk 0:02:29.9]} 17... Nd7 {[%clk 0:01:39.7]} 18. Re1
{[%clk 0:02:20.6]} 18... Nf8 {[%clk 0:01:38.7]} 19. Bf2 {[%clk 0:02:08]} 19...
f5 {[%clk 0:01:36.3]} 20. g4 {[%clk 0:02:05.1]} 20... Nxe5 {[%clk 0:01:35.1]}
21. fxe5 {[%clk 0:02:04.4]} 21... Bg5 {[%clk 0:01:21.1]} 22. Qe2 {[%clk
0:02:02.9]} 22... fxg4 {[%clk 0:01:20.7]} 23. Rg3 {[%clk 0:01:55]} 23... h5
{[%clk 0:01:20.3]} 24. Be3 {[%clk 0:01:51.5]} 24... Bh4 {[%clk 0:01:11]} 25. Rf1
{[%clk 0:01:48]} 25... Bxg3 {[%clk 0:01:09.2]} 26. hxg3 {[%clk 0:01:48.9]} 26...
Rc7 {[%clk 0:01:03.5]} 27. Rf6 {[%clk 0:01:45.1]} 27... Rf7 {[%clk 0:01:00.3]}
28. Bg5 {[%clk 0:01:42.9]} 28... Rxf6 {[%clk 0:01:00.1]} 29. Bxf6 {[%clk
0:01:43.1]} 29... Qd7 {[%clk 0:00:59.3]} 30. Qe3 {[%clk 0:01:43.4]} 30... Re7
{[%clk 0:00:45.5]} 31. Qg5 {[%clk 0:01:35.4]} 31... Rg7 {[%clk 0:00:44.8]} 32.
Bxg7 {[%clk 0:01:31.3]} 32... Qxg7 {[%clk 0:00:43.5]} 33. c4 {[%clk 0:01:24.4]}
33... dxc4 {[%clk 0:00:35.4]} 34. Bxc4 {[%clk 0:01:25.3]} 34... Qd7 {[%clk
0:00:35.2]} 35. Kh2 {[%clk 0:01:07.8]} 35... Qxd4 {[%clk 0:00:33.5]} 36. Bxe6+
{[%clk 0:01:07.6]} 36... Nxe6 {[%clk 0:00:32.7]} 37. Qxg6+ {[%clk 0:01:07.9]}
37... Ng7 {[%clk 0:00:32.6]} 38. Qf6 {[%clk 0:01:05.1]} 38... Qd2+ {[%clk
0:00:29.4]} 39. Kh1 {[%clk 0:01:04.7]} 39... Qd1+ {[%clk 0:00:29.1]} 40. Kh2
{[%clk 0:01:04.6]} 40... Qf3 {[%clk 0:00:29]} 41. Qd8+ {[%clk 0:01:01.6]} 41...
Kh7 {[%clk 0:00:29]} 42. Qd2 {[%clk 0:01:01.3]} 42... h4 {[%clk 0:00:26.6]} 43.
gxh4 {[%clk 0:00:59.4]} 43... g3+ {[%clk 0:00:25.3]} 44. Kg1 {[%clk 0:00:57.3]}
44... Kg6 {[%clk 0:00:22.6]} 45. Qd6+ {[%clk 0:00:53.7]} 45... Kh7 {[%clk
0:00:21.5]} 46. Qd2 {[%clk 0:00:53.5]} 46... Nf5 {[%clk 0:00:15.5]} 47. e6
{[%clk 0:00:50.7]} 47... Qf2+ {[%clk 0:00:13.6]} 48. Qxf2 {[%clk 0:00:50.2]}
48... gxf2+ {[%clk 0:00:12]} 49. Kxf2 {[%clk 0:00:51.1]} 49... Kg6 {[%clk
0:00:12.1]} 50. Kf3 {[%clk 0:00:49.4]} 50... Kf6 {[%clk 0:00:11.4]} 51. Ke4
{[%clk 0:00:50.3]} 51... Kxe6 {[%clk 0:00:10.7]} 52. h5 {[%clk 0:00:48.1]} 52...
Nh6 {[%clk 0:00:10.8]} 53. Kd4 {[%clk 0:00:49]} 53... Kd6 {[%clk 0:00:10.9]} 54.
b4 {[%clk 0:00:48.7]} 54... b6 {[%clk 0:00:11]} 55. Ke4 {[%clk 0:00:46.8]} 55...
b5 {[%clk 0:00:10.5]} 56. axb5 {[%clk 0:00:46.6]} 56... axb5 {[%clk 0:00:10.7]}
57. Kf4 {[%clk 0:00:47]} 57... Kd5 {[%clk 0:00:10.6]} 58. Kg5 {[%clk 0:00:47.3]}
58... Ng8 {[%clk 0:00:08.5]} 59. Kg6 {[%clk 0:00:47.5]} 59... Ne7+ {[%clk
0:00:07.9]} 60. Kf6 {[%clk 0:00:46.3]} 60... Ng8+ {[%clk 0:00:07.9]} 61. Kg7
{[%clk 0:00:46.4]} 61... Ne7 {[%clk 0:00:08.3]} 62. Kf6 {[%clk 0:00:46.8]} 62...
Ng8+ {[%clk 0:00:08.6]} 63. Kg7 {[%clk 0:00:47.2]} 63... Ne7 {[%clk 0:00:08.9]}
64. Kf6 {[%clk 0:00:46.8]} 1/2-1/2